Cogmind - Beta 9.2 @@@ ROGUE MODE // 2019.12.07 @ 13:09:29 Player: cptwinky Result: Escaped! Performance ------------- Evolutions (9) 4500 Regions Visited (24) 4800 Robots Destroyed (356) 1780 Value Destroyed (16910) 16910 Prototype IDs (59) 1180 Alien Tech Used (0) 0 Bonus (10518) 10518 TOTAL SCORE: 39688 Bonus ------- Triggered High Security 500 High Alert Combat Kills 5385 Follower Combat Kills 623 Aligned with FarCom 300 Met Warlord at Base 500 MAIN.C Attacked Warlord 500 Win 3000 Friendly Fire -290 Cogmind --------- Core Integrity 741/1600 Matter 295/300 Energy 25/100 System Corruption 17% Temperature Cool (0) Movement Core (50) Location To Epsilon Eridani Parts ------- > --- POWER (2) -------- (None) > --- PROPULSION (6) --- (None) > --- UTILITY (13) ----- (None) > --- WEAPON (4) ------- (None) > --- INVENTORY (4) ---- Light Quantum Reactor Advanced Transmission Jammer Thermal Barrier Enhanced Nova Cannon Peak State ------------ > --- POWER ------------ Reinforced Fission Core Micro Fission Core > --- PROPULSION ------- Improved Heavy Treads Improved Heavy Treads Advanced Heavy Treads > --- UTILITY ---------- Advanced Heat Sink Large Storage Unit Large Storage Unit Large Storage Unit High-capacity Storage Unit Experimental Targeting Computer Advanced Target Analyzer Advanced Core Analyzer Experimental Armor Integrity Analyzer Advanced Transmission Jammer Advanced Shield Generator Advanced System Shield Drone Bay > --- WEAPON ----------- Quantum Rifle Enhanced Coil Gun Enhanced Coil Gun Railgun > --- INVENTORY -------- Light Particle Reactor Vortex Chain Reactor Armored Heavy Treads Biometal Heavy Treads Advanced Heat Sink Advanced Heat Sink Experimental Cooling System High-capacity Matter Pod Improved Kinecellerator Heavy Armor Plating Hardened Heavy Armor Plating Layered Light Armor Plating Layered Light Armor Plating Heavy Insulated Plating Improved Focal Shield Thermal Barrier Makeshift System Restoration Module High-powered Tractor Beam Nova Cannon Enhanced Nova Cannon Enhanced Coil Gun Heavy Gauss Cannon Compact Tesla Bomb Launcher [Rating: 167] Favorites ----------- Power Micro Fission Core Engine Improved Deuterium Engine Power Core Micro Fission Core Reactor Antimatter Reactor Propulsion Heavy Treads Treads Heavy Treads Leg Flexi-carbon Leg Wheel Wheel Hover Unit Aerolev Unit Flight Unit Cooled VTOL Module Utility Large Storage Unit Device Advanced Heat Sink Storage Large Storage Unit Processor Advanced Terrain Scan Processor Hackware Hacking Suite Protection Improved Light Armor Plating Weapon Enhanced Coil Gun Energy Gun Gatling Laser Energy Cannon Heavy Neutron Cannon Ballistic Gun Enhanced Coil Gun Ballistic Cannon Light Cannon Launcher Compact Tesla Bomb Launcher Special Weapon Mining Laser Impact Weapon Heavy Flail Build | -11 -10 -10 -9 -9 -9 -8 -8 -7 -7 -7 -7 -7 -7 -6 -6 -5 -5 -5 -5 -4 -4 -3 -2 -1 ------- Run | Scr Mat Min Mat Min Exi Min Mat Fac Was Fac Low Low Zio Pro Fac Fac Upp Upp War Pro Fac Res Res Acc Slots Evolved 18 | . . . 2 . . . 2 2 . . . . . . 2 2 . . . . 2 2 2 2 Power 1 | . . . . . . . . . . . . . . . . 1 . . . . . . . . Propulsion 4 | . . . . . . . 1 . . . . . . . 1 1 . . . . . . . 1 Utility 11 | . . . 2 . . . 1 2 . . . . . . 1 . . . . . 1 1 2 1 Weapon 2 | . . . . . . . . . . . . . . . . . . . . . 1 1 . . Parts Attached 398 | 7 19 . 20 2 1 2 17 17 2 25 9 7 5 7 33 40 21 10 9 33 15 17 8 72 Power 25 | 1 2 . 2 . . . 1 2 1 2 . . . . 1 5 2 . 1 2 1 . . 2 Engine 9 | 1 2 . 2 . . . 1 1 . 1 . . . . 1 . . . . . . . . . Core 12 | . . . . . . . . 1 . 1 . . . . . 4 2 . 1 2 1 . . . Reactor 4 | . . . . . . . . . 1 . . . . . . 1 . . . . . . . 2 Propulsion 91 | 3 8 . 7 2 1 . 9 2 1 3 . 2 . . 9 5 8 1 1 11 1 7 1 9 Treads 57 | 1 4 . 4 1 . . 6 1 1 3 . . . . 9 5 3 . . 4 1 4 1 9 Leg 12 | . . . . . . . . . . . . . . . . . . 1 1 7 . 3 . . Wheel 15 | 2 4 . 3 1 1 . 2 . . . . 2 . . . . . . . . . . . . Hover 2 | . . . . . . . 1 1 . . . . . . . . . . . . . . . . Flight 5 | . . . . . . . . . . . . . . . . . 5 . . . . . . . Utility 174 | 1 5 . 5 . . . 4 9 . 10 7 2 4 6 18 20 7 4 5 13 5 6 7 36 Device 104 | . . . 2 . . . 2 3 . 4 6 1 2 5 9 11 3 4 4 12 4 4 4 24 Storage 17 | 1 4 . 2 . . . . . . 2 . . . . 3 . 3 . . . . . 1 1 Processor 8 | . . . . . . . . . . 1 . . . . . . 1 . . . 1 1 2 2 Hackware 13 | . . . . . . . 1 5 . 1 . . . 1 2 3 . . . . . . . . Protection 32 | . 1 . 1 . . . 1 1 . 2 1 1 2 . 4 6 . . 1 1 . 1 . 9 Artifact . | . . . . . . . . . . . . . . . . . . . . . . . . . Weapon 108 | 2 4 . 6 . . 2 3 4 . 10 2 3 1 1 5 10 4 5 2 7 8 4 . 25 Energy Gun 19 | 1 1 . 1 . . . . . . . 1 1 . 1 3 6 . . . . 2 . . 2 Energy Cannon 33 | . 1 . 4 . . 2 2 3 . 5 1 1 . . 2 . 2 1 1 2 1 . . 5 Ballistic Gun 31 | 1 1 . . . . . 1 . . 3 . . 1 . . 2 . 3 . 3 2 3 . 11 Ballistic Cannon 5 | . 1 . . . . . . . . . . . . . . . . . . . 2 1 . 1 Launcher 16 | . . . . . . . . 1 . . . 1 . . . 2 2 1 1 2 . . . 6 Special Weapon 2 | . . . 1 . . . . . . . . . . . . . . . . . 1 . . . Impact Weapon 2 | . . . . . . . . . . 2 . . . . . . . . . . . . . . Slashing Weapon . | . . . . . . . . . . . . . . . . . . . . . . . . . Piercing Weapon . | . . . . . . . . . . . . . . . . . . . . . . . . . Special Melee Weapon . | . . . . . . . . . . . . . . . . . . . . . . . . . Unidentified Prototypes 14 | . . . . . . . 2 3 . . . . . . . 1 . . 3 . 1 2 . 2 Parts Lost 82 | . 5 1 5 . . . 1 1 . 1 3 . . . 6 4 . 1 . 8 7 . . 39 Power 7 | . 1 . 1 . . . . . . 1 . . . . . 1 . . . 1 . . . 2 Propulsion 17 | . . . 1 . . . 1 . . . 1 . . . . . . 1 . 2 2 . . 9 Utility 26 | . . . 1 . . . . 1 . . 2 . . . 2 1 . . . 2 1 . . 16 Weapon 32 | . 4 1 2 . . . . . . . . . . . 4 2 . . . 3 4 . . 12 Highest Loss Streak 11 | . 2 1 3 . . . 1 1 . 1 3 . . . 2 2 . 1 . 2 7 . . 11 Average Slot Usage (%) 90 | . 95 85 98 100 77 95 99 99 93 91 88 90 91 92 88 85 86 87 87 92 97 94 93 84 Engine 3 | . 13 14 10 11 11 11 9 4 . . 7 7 7 7 5 1 . . . . . . . . Core 4 | . . . . . . . . 2 4 1 . . . . . 6 10 11 11 11 10 9 8 6 Treads 13 | . 24 14 13 12 11 11 20 23 16 14 12 4 . . 16 16 16 13 11 8 1 6 15 11 Leg 1 | . . . . . . . . . . . . . . . . . . 2 5 12 22 11 . . Wheel 2 | . 3 14 8 9 11 11 5 . . . . 8 15 15 . . . . . . . . . . Device 8 | . . . 10 11 11 11 7 6 7 2 9 22 14 12 10 6 5 5 5 7 13 8 13 14 Storage 20 | . 22 28 31 33 33 33 27 23 23 23 23 23 23 23 20 17 15 17 17 17 15 14 13 14 Processor 7 | . . . . . . . . . . 1 7 7 7 7 6 5 9 11 11 11 11 19 19 15 Hackware 7 | . . . . . . . 8 19 23 20 5 . . 2 11 11 6 5 5 5 5 4 4 2 Protection 3 | . 1 . 1 . . . 1 2 . 4 5 . 7 7 3 3 5 5 4 2 . . . 2 Energy Gun 1 | . 7 . 4 . . . . . . . . 6 4 2 4 6 . . . . 2 . . 1 Energy Cannon 6 | . 2 . 14 22 . 17 17 14 15 12 14 7 7 7 6 . 4 2 3 2 . . . 1 Ballistic Gun 4 | . 10 . . . . . . . . 1 . . 2 4 . 2 5 8 6 6 9 18 17 12 Naked Turns 6 | . . . . . . . . . . . . . . . . . . . . . . . . 6 Heaviest Build 150 | 12 43 43 66 66 66 66 68 72 80 86 93 85 86 86 94 101 105 102 106 126 119 125 129 150 Greatest Support 230 | 16 40 10 10 10 16 16 64 64 92 92 92 70 38 38 140 168 168 168 140 149 110 164 183 230 Greatest Overweight (x) 8 | 1 4 4 6 6 6 4 4 1 1 1 1 8 2 2 2 . 6 . . 1 1 1 . 4 Average Overweight (x) . | . . 4 5 6 4 3 2 1 . . . 4 2 2 . . . . . . . . . . Largest Inventory Capacity 30 | 6 16 16 22 22 22 22 22 22 22 22 22 22 22 22 24 24 24 24 24 24 24 24 30 30 Average Capacity 22 | 5 9 16 20 22 22 22 22 22 22 22 22 22 22 22 22 24 22 24 24 24 24 24 24 28 Most Carried 30 | 5 16 16 22 22 22 22 22 22 22 22 22 22 22 22 24 24 24 24 24 24 24 24 28 30 Average Carried 21 | 3 6 16 20 21 21 20 21 21 21 21 21 21 21 22 21 23 21 23 23 22 22 21 23 25 Final Capacity 30 | 6 16 16 22 22 22 22 22 22 22 22 22 22 22 22 24 24 24 24 24 24 24 24 30 4 Final Carried 28 | 5 16 16 22 22 22 20 22 22 22 22 22 22 22 22 24 24 24 24 24 24 19 24 28 4 Class Distribution -------------------- 46% | Hauler-Mutant 22% | Hacker-Mutant 5% | Hauler-Skirmisher 5% | Hauler-Gunner 4% | Scavenger-Mutant 4% | Scavenger-Skirmisher 4% | Scavenger-Gunner 4% | Mutant Dominant Class ---------------- Mutant | -10/Materials Mutant | -10/Mines Hauler-Mutant | -9/Materials Hauler-Mutant | -9/Mines Hauler-Mutant | -9/Exiles Hauler-Mutant | -8/Mines Hauler-Mutant | -8/Materials Hacker-Mutant | -7/Factory Hacker-Mutant | -7/Waste Hacker-Mutant | -7/Factory Hauler-Mutant | -7/Lower Caves Hauler-Mutant | -7/Lower Caves Hauler-Mutant | -7/Zion Hauler-Mutant | -6/Proximity Caves Hacker-Mutant | -6/Factory Hauler-Mutant | -5/Factory Hauler-Mutant | -5/Upper Caves Hauler-Mutant | -5/Upper Caves Hauler-Mutant | -5/Warlord Hauler-Mutant | -4/Proximity Caves Scavenger-Skirmisher | -4/Factory Scavenger-Gunner | -3/Research Scavenger-Skirmisher | -2/Research Hauler-Gunner | -1/Access Resources | -11 -10 -10 -9 -9 -9 -8 -8 -7 -7 -7 -7 -7 -7 -6 -6 -5 -5 -5 -5 -4 -4 -3 -2 -1 ----------- Run | Scr Mat Min Mat Min Exi Min Mat Fac Was Fac Low Low Zio Pro Fac Fac Upp Upp War Pro Fac Res Res Acc Matter Collected 8206 | 262 322 . 220 129 . . 230 180 30 322 69 74 76 82 280 475 505 255 44 749 169 592 157 2984 Remotely 533 | . . . . . . . . . . . . . . . . . . . . . . . . 533 Salvage Created 19719 | 93 758 . 371 118 . . 738 578 482 574 33 71 . . 1293 1265 364 414 . 1448 169 1063 306 9581 Parts 877 | 2 39 . 21 9 . . 31 33 4 25 5 7 . . 67 44 18 18 . 66 6 40 11 431 Haulers Intercepted 11 | . 1 . 2 . . . 4 1 . . . . . . . . . . . . . 1 . 2 Recyclers Shooed 10 | . . . . 1 . . . . . . . . . . . . . . . . . 2 . 7 Parts Field Recycled . | . . . . . . . . . . . . . . . . . . . . . . . . . Retrieved Matter . | . . . . . . . . . . . . . . . . . . . . . . . . . Parts Self-Destructed 94 | . . . . . . . . . . . . 6 . 13 . . 13 10 3 49 . . . . Prevented 65 | . . . . . . . . . . . . . 2 . . . 1 9 26 27 . . . . Kills | -11 -10 -10 -9 -9 -9 -8 -8 -7 -7 -7 -7 -7 -7 -6 -6 -5 -5 -5 -5 -4 -4 -3 -2 -1 ------- Run | Scr Mat Min Mat Min Exi Min Mat Fac Was Fac Low Low Zio Pro Fac Fac Upp Upp War Pro Fac Res Res Acc Combat Hostiles Destroyed 285 | . 23 . 9 3 . . 9 14 . 12 3 4 . . 25 22 11 8 . 22 3 9 3 105 Guns 125 | . 9 . . . . . . . . 4 . 1 . . 14 13 2 3 . 6 2 8 2 61 Cannons 76 | . 14 . 9 3 . . 8 10 . 8 3 . . . 8 . . . . 4 1 . . 8 AOE 53 | . . . . . . . . 4 . . . 3 . . 2 5 8 4 . 7 . 1 1 18 Classes Destroyed 20 | 1 4 . 1 . . . 3 1 . . 2 1 . . 5 1 . . . . . . . 1 Worker 20 | . . . . . . . 1 . . . . . . . 2 1 . . . . . . 1 15 Builder 13 | . . . . . . . . . . . . . . . 1 . . . . . . . . 12 Tunneler 1 | . 1 . . . . . . . . . . . . . . . . . . . . . . . Hauler 11 | . 1 . 2 . . . 4 1 . . . . . . . . . . . . . 1 . 2 Recycler 9 | 1 . . . . . . . . . 1 . . . . . . . . . . . 2 . 5 Minesweeper 3 | . . . . . . . . . . . . 1 . . . . . 1 . 1 . . . . Operator 2 | . . . . . . . 1 . . . . . . . 1 . . . . . . . . . Drone 1 | . . . . . . . . . . . . . . . 1 . . . . . . . . . Watcher 10 | . . . . . . . . . . . . . . . 3 3 . . . . . . 1 3 Swarmer 59 | . 6 . 3 . . . . 4 . 4 . 4 . . 4 . 11 4 . 3 . . . 16 Saboteur 4 | . . . . . . . . . . . . . . . . 1 . . . 1 . . . 2 Grunt 118 | . 17 . 5 3 . . 4 8 . 2 . . . . 12 11 . 3 . 8 1 6 . 38 Brawler 8 | . . . . . . . . . . . . . . . 1 1 . . . 1 . . . 5 Duelist 7 | . . . . . . . . . . . . . . . 2 . . . . 2 . 1 . 2 Protector 2 | . . . . . . . . . . . . . . . . . . . . . . . . 2 Sentry 24 | . . . 1 . . . 4 1 . 3 . . . . 1 3 . . . 1 . 2 1 7 Hunter 35 | . . . . . . . 1 . . 1 . . . . 2 2 . 1 . 4 . . 2 22 Programmer 25 | . . . . . . . . 1 . 2 . . . . 3 4 . . . 2 2 . . 11 Behemoth 1 | . . . . . . . . . . . 1 . . . . . . . . . . . . . Packrat 1 | . . . . . . . . . . . . . . . . . 1 . . . . . . . Thief 2 | . . . . . . . . . . . 2 . . . . . . . . . . . . . Best Kill Streak 29 | 1 5 . 4 3 . . 2 5 . 3 1 4 . . 4 5 5 5 . 8 3 4 4 29 Combat Bots Only 16 | . 5 . 3 3 . . 2 5 . 3 1 4 . . 3 5 5 5 . 8 3 4 1 16 Max Kills in Single Turn 5 | 1 1 . 2 1 . . 2 3 . 2 1 3 . . 3 1 3 2 . 2 1 1 2 5 Gunslinging 1 | . . . . . . . . . . 1 . . . . . . . . . . . . . 1 Exploded 3 | . . . . . . . . 3 . . . 3 . . 2 1 3 2 . 2 . 1 1 3 Melee . | . . . . . . . . . . . . . . . . . . . . . . . . . Uniques/NPCs Destroyed . | . . . . . . . . . . . . . . . . . . . . . . . . . Combat | -11 -10 -10 -9 -9 -9 -8 -8 -7 -7 -7 -7 -7 -7 -6 -6 -5 -5 -5 -5 -4 -4 -3 -2 -1 -------- Run | Scr Mat Min Mat Min Exi Min Mat Fac Was Fac Low Low Zio Pro Fac Fac Upp Upp War Pro Fac Res Res Acc Damage Taken 26194 | . 887 42 458 64 . 104 448 564 . 894 656 179 . . 1865 2359 229 475 . 3384 939 316 71 12260 Core 2110 | . 150 7 25 . . 30 21 78 . 122 8 13 . . 194 102 29 40 . 282 119 10 21 859 Absorbed by Shields 784 | . . . . . . . . . . . . . . . . . . . . . . . . 784 Reduced by Siege Mode 1614 | . . . . . . . . . . 18 25 . . . 35 205 . . . 204 . 11 . 1116 Core Remaining (%) 77 | 100 . 37 . . . 86 96 . . . . . . 68 77 . . . . 54 89 99 98 46 Volleys Fired 805 | 2 75 . 24 7 . 1 45 39 15 50 23 9 . 4 62 57 14 29 7 85 17 23 5 212 Largest 4 | 2 2 . 2 2 . 2 2 2 2 2 2 2 . 2 2 2 2 2 1 2 3 4 4 4 Hottest 237 | 70 80 . 136 136 . 136 136 136 60 220 220 190 . 191 220 126 120 120 110 143 179 120 120 237 Shots Fired 1769 | 4 147 . 42 14 . 2 90 70 30 92 39 13 . 8 159 134 16 44 7 138 33 92 17 578 Gun 1060 | 4 104 . 6 . . . . . . 27 . 4 . 4 98 121 2 27 . 74 16 92 17 464 Cannon 624 | . 43 . 30 14 . 2 90 68 30 65 39 7 . 4 61 . 6 12 7 54 17 . . 75 Launcher 79 | . . . . . . . . 2 . . . 2 . . . 13 8 5 . 10 . . . 39 Special 6 | . . . 6 . . . . . . . . . . . . . . . . . . . . . Kinetic 848 | 2 95 . . . . . . . . 27 . . . 3 . 31 2 27 . 74 23 92 17 455 Thermal 807 | 2 52 . 42 14 . 2 90 68 30 65 39 11 . 5 159 90 6 12 7 19 10 . . 84 Explosive 4 | . . . . . . . . 2 . . . 2 . . . . . . . . . . . . Electromagnetic 110 | . . . . . . . . . . . . . . . . 13 8 5 . 45 . . . 39 Robot Hit Streak 71 | 4 11 . 6 12 . 1 10 12 20 23 12 10 . 2 18 29 3 8 . 18 17 37 21 71 Robot Miss Streak 5 | . 5 . 2 1 . 1 3 2 1 3 2 1 . 4 2 2 1 2 . 4 1 1 . 2 Penetration Max 1 | . . . . . . . . . . . . . . . . . . . . 1 1 . . 1 Secondary Targets 22 | . 2 . . . . . . . . 1 . . . . . . . . . . . . . 19 Max Gunslinging Chain 2 | . 1 . . . . . . . . 1 . . . . . . . . . . . . . 2 Autonomous 90 | . . . . . . . . . . . . . . . 62 28 . . . . . . . . Shots Hit Robots 1263 | 4 88 . 21 10 . 1 63 47 27 53 21 8 . 3 112 117 8 25 . 94 21 76 11 453 Core Hits 694 | 2 41 . 12 4 . . 20 27 4 22 7 6 . 1 51 59 11 14 . 41 6 32 9 325 Critical Hits 91 | . . . . . . 1 9 9 . . . . . . 1 1 . . . 14 2 4 2 48 Critical Kills 24 | . . . . . . . 2 3 . . . . . . . . . . . 6 . 1 1 11 Critical Parts Destroyed 63 | . . . . . . 1 7 6 . . . . . . 1 1 . . . 8 2 2 1 34 Melee Attacks 6 | . . . . . . . . . . 6 . . . . . . . . . . . . . . Impact 6 | . . . . . . . . . . 6 . . . . . . . . . . . . . . Slashing . | . . . . . . . . . . . . . . . . . . . . . . . . . Piercing . | . . . . . . . . . . . . . . . . . . . . . . . . . Sneak Attacks . | . . . . . . . . . . . . . . . . . . . . . . . . . Combat Hostiles . | . . . . . . . . . . . . . . . . . . . . . . . . . Follow-up Attacks . | . . . . . . . . . . . . . . . . . . . . . . . . . Damage Inflicted 43272 | 44 1162 . 427 209 . 21 1293 1251 758 1433 884 287 . 78 4277 4173 691 814 . 2610 720 2536 544 19060 Guns 21340 | 44 563 . 57 . . . . . . 212 . 77 . 48 2141 2522 61 261 . 736 514 2350 278 11476 Cannons 10099 | . 599 . 370 209 . 21 1293 928 758 1077 884 43 . 30 1274 . 107 99 . 798 206 . . 1403 Explosions 11826 | . . . . . . . . 323 . 144 . 167 . . 862 1651 523 454 . 1076 . 186 266 6174 Melee . | . . . . . . . . . . . . . . . . . . . . . . . . . Ramming 7 | . . . . . . . . . . . . . . . . . . . . . . . . 7 Kinetic 17178 | 19 631 . . . . . . . . 212 . . . 48 . 854 61 261 . 736 642 2350 278 11086 Thermal 16581 | 25 531 . 427 209 . 21 1293 928 758 1077 884 120 . 30 4223 2521 192 151 . 951 78 . . 2162 Explosive 1046 | . . . . . . . . 323 . 144 . 167 . . . . . . . . . . . 412 Electromagnetic 8460 | . . . . . . . . . . . . . . . 54 798 438 402 . 923 . 186 266 5393 Impact . | . . . . . . . . . . . . . . . . . . . . . . . . . Slashing . | . . . . . . . . . . . . . . . . . . . . . . . . . Piercing . | . . . . . . . . . . . . . . . . . . . . . . . . . Highest Corruption 17 | . 1 1 7 7 7 7 . 1 1 1 . . . . 1 2 2 . 4 5 4 . . 17 Average Corruption 2 | . 1 1 7 7 7 7 . 1 1 1 . . . . 1 1 1 . 2 2 3 . . 2 Corruption Purged 13 | . . . . . . . . . . 2 . . . . 1 2 2 . . 4 . . . 2 Effects 93 | . 3 . 4 5 10 6 . . 3 1 . . . . . 3 8 . . 10 2 . . 38 Message Errors 34 | . . . 1 . 3 2 . . 3 1 . . . . . 1 6 . . 5 1 . . 11 Matter Fused 11 | . . . 1 2 3 . . . . . . . . . . . . . . . . . . 5 Heat Flow Errors 8 | . . . . 2 1 1 . . . . . . . . . . . . . . 1 . . 3 Energy Discharges 14 | . 1 . 1 1 1 2 . . . . . . . . . 2 2 . . . . . . 4 Data Loss (minor) 5 | . 1 . . . 1 . . . . . . . . . . . . . . 2 . . . 1 Data Loss (major) 2 | . . . . . 1 . . . . . . . . . . . . . . . . . . 1 Targeting Errors 15 | . 1 . 1 . . 1 . . . . . . . . . . . . . 3 . . . 9 Weapon Failures 4 | . . . . . . . . . . . . . . . . . . . . . . . . 4 Overload Shots . | . . . . . . . . . . . . . . . . . . . . . . . . . Overflow Damage 585 | . . . . . . . 12 1 . 27 51 . . . 197 63 4 . . 57 8 . . 165 Projectiles 177 | . . . . . . . 12 . . 16 51 . . . 71 . . . . 19 8 . . . Explosions 408 | . . . . . . . . 1 . 11 . . . . 126 63 4 . . 38 . . . 165 Melee . | . . . . . . . . . . . . . . . . . . . . . . . . . Knockbacks 9 | . 4 . . . . . . . . . . . . . . . . . . . 4 . . 1 Impact . | . . . . . . . . . . . . . . . . . . . . . . . . . Kinetic 8 | . 4 . . . . . . . . . . . . . . . . . . . 3 . . 1 Secondary 1 | . . . . . . . . . . . . . . . . . . . . . 1 . . . Self-Inflicted Damage 519 | . . . . . . . . . . . . . . . 37 . . 33 . 108 . . . 341 Shots 21 | . . . . . . . . . . . . . . . 1 . . 3 . 6 . . . 11 Rammed 2 | . . . . . . . . . . . . . . . . . . . . . . . . 2 Targets Rammed 2 | . . . . . . . . . . . . . . . . . . . . . . . . 2 Kicked . | . . . . . . . . . . . . . . . . . . . . . . . . . Crushed . | . . . . . . . . . . . . . . . . . . . . . . . . . Highest Temperature 470 | 60 280 . 18 100 245 131 300 48 . 174 425 54 . 140 470 300 138 138 132 385 320 109 . 312 Average Temperature 95 | 35 85 . 6 24 127 84 85 21 . 35 192 17 . 76 122 102 61 45 50 148 153 41 . 88 Received Heat Transfer 3474 | . 411 . 48 33 . 63 144 231 . 114 72 . . . 510 318 . 78 . 156 99 93 . 1104 Effects 18 | . 1 . . . . . . . . . 3 . . . 8 . . . . 4 . . . 2 Shutdowns 3 | . . . . . . . . . . . 1 . . . 1 . . . . 1 . . . . Energy Bleed 6 | . 1 . . . . . . . . . 1 . . . 3 . . . . . . . . 1 Interference 4 | . . . . . . . . . . . . . . . 3 . . . . 1 . . . . Matter Decay 2 | . . . . . . . . . . . . . . . 1 . . . . 1 . . . . Short Circuit 2 | . . . . . . . . . . . . . . . . . . . . 1 . . . 1 Damage (minor) 1 | . . . . . . . . . . . 1 . . . . . . . . . . . . . Siege Activations 41 | . . . . . . . . . . 3 1 . . . 5 7 . . . 3 . 3 1 18 Total Turns 1144 | . . . . . . . . . . 53 19 . . . 105 144 . . . 136 . 43 51 593 Longest Duration 86 | . . . . . . . . . . 34 19 . . . 36 31 . . . 59 . 26 51 86 Robots Corrupted 29 | . . . . . . . . . . . . . . . . 3 1 1 . 6 . . . 18 Combat Hostiles 28 | . . . . . . . . . . . . . . . . 3 1 1 . 5 . . . 18 Parts Fried 58 | . . . . . . . . . . . . . . . . 2 3 2 . 5 . 1 1 44 Impact Corruptions . | . . . . . . . . . . . . . . . . . . . . . . . . . Robots Melted 3 | . . . . . . . 1 . . . . . . . 1 1 . . . . . . . . Combat Hostiles 3 | . . . . . . . 1 . . . . . . . 1 1 . . . . . . . . Parts Melted 22 | . 1 . 1 . . . . 2 . 2 . . . . 6 5 . . . . . . . 5 Heat Transferred 20745 | 74 1358 . 814 370 . 37 2331 1665 1036 1272 659 200 . 25 4224 3486 200 200 . 625 62 . . 2107 Parts Sabotaged 1 | . . . . . . . . . . . . . . . . . . . . . . . . 1 Parts Stolen . | . . . . . . . . . . . . . . . . . . . . . . . . . Parts Stripped . | . . . . . . . . . . . . . . . . . . . . . . . . . Power Chain Reactions 10 | . . . . . . . . . . . . . . . . 1 1 1 . 3 . . . 4 Missiles Intercepted . | . . . . . . . . . . . . . . . . . . . . . . . . . Alert | -11 -10 -10 -9 -9 -9 -8 -8 -7 -7 -7 -7 -7 -7 -6 -6 -5 -5 -5 -5 -4 -4 -3 -2 -1 ------- Run | Scr Mat Min Mat Min Exi Min Mat Fac Was Fac Low Low Zio Pro Fac Fac Upp Upp War Pro Fac Res Res Acc Peak Influence 2552 | 5 525 209 301 121 . . 216 290 52 650 . . . . 1144 949 . . . . 159 146 343 2552 Average Influence 360 | 1 312 208 165 83 . . 80 98 33 139 . . . . 435 746 . . . . 105 75 210 836 Maximum Alert Level 5 | . 2 1 1 . . . 1 1 . 2 . . . . 4 3 . . . . . . 1 5 Low Security (%) 56 | 100 26 . 62 100 . 100 99 92 100 90 . . . . 50 . . . . . 100 100 52 3 Level 1 10 | . 36 100 37 . . . . 7 . 3 . . . . 5 . . . . . . . 47 21 Level 2 15 | . 36 . . . . . . . . 5 . . . . 11 37 . . . . . . . 39 Level 3 12 | . . . . . . . . . . . . . . . 28 62 . . . . . . . 14 Level 4 1 | . . . . . . . . . . . . . . . 4 . . . . . . . . 3 Level 5 1 | . . . . . . . . . . . . . . . . . . . . . . . . 6 High Security 1 | . . . . . . . . . . . . . . . . . . . . . . . . 10 Max Security . | . . . . . . . . . . . . . . . . . . . . . . . . . Squads Dispatched 80 | . 5 . 2 . . 1 2 5 . 9 . . . . 15 5 . . . 1 2 1 1 31 Investigation 22 | . 4 . 2 . . 1 1 3 . 4 . . . . 3 1 . . . . . . . 3 Extermination 15 | . . . . . . . . 1 . 4 . . . . 3 2 . . . . 1 1 . 3 Reinforcement 16 | . 1 . . . . . 1 1 . . . . . . 4 1 . . . . 1 . 1 6 Assault 15 | . . . . . . . . . . . . . . . . 1 . . . 1 . . . 13 Garrison 12 | . . . . . . . . . . 1 . . . . 5 . . . . . . . . 6 Intercept . | . . . . . . . . . . . . . . . . . . . . . . . . . Construction Impeded 3 | . . . . . . . . . . . . . . . . . . . . . . . . 3 Haulers Reinforced 2 | . . . . . . . . 1 . . . . . . . . . . . . . . . 1 Stealth | -11 -10 -10 -9 -9 -9 -8 -8 -7 -7 -7 -7 -7 -7 -6 -6 -5 -5 -5 -5 -4 -4 -3 -2 -1 --------- Run | Scr Mat Min Mat Min Exi Min Mat Fac Was Fac Low Low Zio Pro Fac Fac Upp Upp War Pro Fac Res Res Acc Distress Signals 27 | . 6 . 1 . . . 2 1 . 1 . . . . 1 1 . . . . . 1 5 8 Communications Jammed 81 | . . . . . . . . . . . . . . . 1 3 . . . . . . . 77 Distress Signals 81 | . . . . . . . . . . . . . . . 1 3 . . . . . . . 77 Times Spotted 429 | . 36 3 11 3 . 3 18 17 . 21 4 4 . 9 42 28 13 11 . 23 6 12 3 162 Peak Tracking Total 20 | . 7 3 4 3 . 3 3 5 . 4 2 4 . 4 4 6 5 6 . 6 4 4 2 20 Tactical Retreats 24 | . 2 . . . . . . . . 1 1 . . 1 4 . 1 1 . 1 1 . 1 10 Traps | -11 -10 -10 -9 -9 -9 -8 -8 -7 -7 -7 -7 -7 -7 -6 -6 -5 -5 -5 -5 -4 -4 -3 -2 -1 ------- Run | Scr Mat Min Mat Min Exi Min Mat Fac Was Fac Low Low Zio Pro Fac Fac Upp Upp War Pro Fac Res Res Acc Traps Triggered 13 | . . . . . . . . 1 . 2 . . . . 6 1 . . . . . . . 3 Indirectly 4 | . . . . . . . . . . . . . . . 1 . . . . . . . . 3 Trap Hack Attempts . | . . . . . . . . . . . . . . . . . . . . . . . . . Triggered . | . . . . . . . . . . . . . . . . . . . . . . . . . Disarmed . | . . . . . . . . . . . . . . . . . . . . . . . . . Reprogrammed 12 | . 6 . . . . . . . . 6 . . . . . . . . . . . . . . Reused 4 | . 1 . . . . . . . . . . . . . . . . . . . . 1 2 . Traps Extracted . | . . . . . . . . . . . . . . . . . . . . . . . . . Installed 11 | . . . . . . . . . . . . 1 . . . . . 7 . . . 1 2 . Triggered 15 | . 1 . . . . . . . . . . . . . . . . . 6 4 . 1 2 1 Exploded 1 | . . . . . 1 . . . . . . . . . . . . . . . . . . . Machines | -11 -10 -10 -9 -9 -9 -8 -8 -7 -7 -7 -7 -7 -7 -6 -6 -5 -5 -5 -5 -4 -4 -3 -2 -1 ---------- Run | Scr Mat Min Mat Min Exi Min Mat Fac Was Fac Low Low Zio Pro Fac Fac Upp Upp War Pro Fac Res Res Acc Machines Disabled 33 | . 1 . . . . . 1 . . 3 . . . . 15 4 . . 1 1 . 1 1 5 Max in Single Turn 11 | . 1 . . . . . 1 . . 2 . . . . 11 4 . . 1 1 . 1 1 1 Garrison Access 6 | . . . . . . . . . . 2 . . . . 1 . . . . . . . 1 2 Machines Sabotaged . | . . . . . . . . . . . . . . . . . . . . . . . . . Garrisons Compromised . | . . . . . . . . . . . . . . . . . . . . . . . . . Overloaded Fab Kills . | . . . . . . . . . . . . . . . . . . . . . . . . . Fab Network Shutdowns 2 | . . . . . . . . . . 1 . . . . 1 . . . . . . . . . Hacking | -11 -10 -10 -9 -9 -9 -8 -8 -7 -7 -7 -7 -7 -7 -6 -6 -5 -5 -5 -5 -4 -4 -3 -2 -1 --------- Run | Scr Mat Min Mat Min Exi Min Mat Fac Was Fac Low Low Zio Pro Fac Fac Upp Upp War Pro Fac Res Res Acc Machines Accessed 85 | . 10 . 3 . 2 1 4 7 . 20 . . . 1 12 7 1 1 2 . 3 3 1 7 Terminals 43 | . 7 . 2 . . 1 2 6 . 6 . . . 1 6 4 . . . . 2 2 . 4 Fabricators 10 | . . . . . . . . . . 3 . . . . 2 2 . . . . 1 1 . 1 Repair Stations 8 | . 1 . . . . . 1 . . 3 . . . . 2 1 . . . . . . . . Recycling Units 8 | . 2 . 1 . . . . 1 . 4 . . . . . . . . . . . . . . Scanalyzers 4 | . . . . . . . 1 . . 2 . . . . 1 . . . . . . . . . Garrison Access 6 | . . . . . . . . . . 2 . . . . 1 . . . . . . . 1 2 Total Hacks 245 | . 28 . 12 . 2 4 13 14 . 49 . . . 6 50 19 1 1 7 . 8 14 1 16 Successful 138 | . 15 . 6 . 2 . 7 5 . 38 . . . 3 35 9 1 1 7 . 2 3 . 4 Failed 106 | . 12 . 6 . . 4 6 9 . 11 . . . 3 15 10 . . . . 6 11 1 12 Catastrophic 22 | . 1 . 1 . . 1 . 5 . . . . . . 2 1 . . . . 3 3 1 4 Database Lockouts 1 | . 1 . . . . . . . . . . . . . . . . . . . . . . . Manual 114 | . 11 . 4 . 1 4 8 11 . 17 . . 1 5 18 10 . . . . 4 10 1 9 Terminals 125 | . 21 . 9 . . 4 9 12 . 14 . . . 6 15 10 . . . . 6 10 . 9 Fabricators 28 | . . . . . . . . . . 9 . . . . 5 5 . . . . 2 4 . 3 Repair Stations 21 | . 2 . . . . . 2 . . 7 . . . . 6 4 . . . . . . . . Recycling Units 18 | . 5 . 3 . . . . 2 . 8 . . . . . . . . . . . . . . Scanalyzers 27 | . . . . . . . 2 . . 6 . . . . 19 . . . . . . . . . Garrison Access 15 | . . . . . . . . . . 5 . . . . 5 . . . . . . . 1 4 Terminal Hacks 46 | . 10 . 4 . 2 . 3 2 . 6 . . . 3 2 2 1 1 7 . 1 2 . . Record 2 | . . . . . 1 . . . . . . . . 1 . . . . . . . . . . Part Schematic 3 | . 1 . . . . . . . . 1 . . . . . . . . . . 1 . . . Robot Analysis 5 | . 1 . 2 . . . . . . . . . . 2 . . . . . . . . . . Prototype ID Bank 11 | . 3 . . . . . 1 . . 1 . . . . . . . . 6 . . . . . Open Door 3 | . . . . . . . . . . . . . . . . . 1 1 1 . . . . . Level Access Points 1 | . . . . . . . . . . . . . . . . . . . . . . 1 . . Branch Access Points 5 | . 1 . 1 . . . . 1 . . . . . . 1 1 . . . . . . . . Machine Index 2 | . . . . . . . . . . 1 . . . . . 1 . . . . . . . . Terminal Index 2 | . . . . . . . . 1 . . . . . . . . . . . . . 1 . . Locate Traps 2 | . 1 . . . . . . . . . . . . . 1 . . . . . . . . . Reprogram Traps 3 | . 1 . . . . . . . . 2 . . . . . . . . . . . . . . Hauler Manifests 3 | . 1 . 1 . . . 1 . . . . . . . . . . . . . . . . . Zone Layout 3 | . 1 . . . . . 1 . . 1 . . . . . . . . . . . . . . EX-Prototype ID Bank 1 | . . . . . 1 . . . . . . . . . . . . . . . . . . . Fabricator Hacks 11 | . . . . . . . . . . 5 . . . . 2 2 . . . . 1 . . 1 Load Schematic 5 | . . . . . . . . . . 1 . . . . 1 1 . . . . 1 . . 1 Build 6 | . . . . . . . . . . 4 . . . . 1 1 . . . . . . . . Repair Station Hacks 16 | . 2 . . . . . 2 . . 6 . . . . 4 2 . . . . . . . . Scan Component 8 | . 1 . . . . . 1 . . 3 . . . . 2 1 . . . . . . . . Repair 8 | . 1 . . . . . 1 . . 3 . . . . 2 1 . . . . . . . . Recycling Unit Hacks 7 | . 1 . 1 . . . . 1 . 4 . . . . . . . . . . . . . . Retrieve Components 7 | . 1 . 1 . . . . 1 . 4 . . . . . . . . . . . . . . Scanalyzer 23 | . . . . . . . 2 . . 3 . . . . 18 . . . . . . . . . Insert Component 10 | . . . . . . . 1 . . 2 . . . . 7 . . . . . . . . . Analyze 13 | . . . . . . . 1 . . 1 . . . . 11 . . . . . . . . . Garrison Access Hacks 3 | . . . . . . . . . . 2 . . . . 1 . . . . . . . . . Seal Access 3 | . . . . . . . . . . 2 . . . . 1 . . . . . . . . . Unauthorized Hacks 88 | . 4 . 2 . . . . 5 . 28 . . . . 22 10 . . . . 2 2 1 12 Terminals 13 | . . . . . . . . 1 . 5 . . . . 3 1 . . . . . 1 . 2 Assimilate 4 | . . . . . . . . 1 . 2 . . . . 1 . . . . . . . . . Botnet 8 | . . . . . . . . . . 2 . . . . 2 1 . . . . . 1 . 2 Disrupt 1 | . . . . . . . . . . 1 . . . . . . . . . . . . . . Fabricators 6 | . . . . . . . . . . 2 . . . . 2 2 . . . . . . . . Report 2 | . . . . . . . . . . . . . . . 1 1 . . . . . . . . Siphon 2 | . . . . . . . . . . . . . . . 1 1 . . . . . . . . Haulers 1 | . . . . . . . . . . 1 . . . . . . . . . . . . . . Download 1 | . . . . . . . . . . 1 . . . . . . . . . . . . . . Repair Stations . | . . . . . . . . . . . . . . . . . . . . . . . . . Recycling Units 7 | . 2 . 1 . . . . 1 . 3 . . . . . . . . . . . . . . Mask 4 | . . . . . . . . 1 . 3 . . . . . . . . . . . . . . Tunnel 3 | . 2 . 1 . . . . . . . . . . . . . . . . . . . . . Scanalyzers . | . . . . . . . . . . . . . . . . . . . . . . . . . Garrison Access 6 | . . . . . . . . . . 2 . . . . 3 . . . . . . . . 1 Reprogram 5 | . . . . . . . . . . 2 . . . . 3 . . . . . . . . . Jam 1 | . . . . . . . . . . . . . . . . . . . . . . . . 1 Data Cores Recovered . | . . . . . . . . . . . . . . . . . . . . . . . . . Used . | . . . . . . . . . . . . . . . . . . . . . . . . . Hacking Detections 69 | . 9 . 1 . . 1 4 6 . 17 . . . 1 11 6 . . . . 3 3 1 6 Full Trace Events 14 | . 1 . 1 . . 1 1 3 . 2 . . . . 2 1 . . . . . . . 2 Feedback Events 4 | . 1 . . . . . . 2 . 1 . . . . . . . . . . . . . . Corruption 3 | . 1 . . . . . . 1 . 1 . . . . . . . . . . . . . . Hackware Fried 1 | . . . . . . . . 1 . . . . . . . . . . . . . . . . Feedback Blocked . | . . . . . . . . . . . . . . . . . . . . . . . . . Robot Schematics Acquired . | . . . . . . . . . . . . . . . . . . . . . . . . . Robots Built . | . . . . . . . . . . . . . . . . . . . . . . . . . Matter . | . . . . . . . . . . . . . . . . . . . . . . . . . Time . | . . . . . . . . . . . . . . . . . . . . . . . . . Total Robot Build Rating . | . . . . . . . . . . . . . . . . . . . . . . . . . Part Schematics Acquired 12 | . 1 . . . . . 1 . . 2 . . . . 7 . . . . . 1 . . . Parts Built 10 | . . . . . . . . . . 6 . . . . 2 2 . . . . . . . . Matter 1290 | . . . . . . . . . . 972 . . . . 159 159 . . . . . . . . Time 416 | . . . . . . . . . . 204 . . . . 106 106 . . . . . . . . Total Part Build Rating 60 | . . . . . . . . . . 36 . . . . 12 12 . . . . . . . . Parts Repaired 8 | . 1 . . . . . 1 . . 3 . . . . 2 1 . . . . . . . . Time 252 | . 26 . . . . . 26 . . 131 . . . . 50 19 . . . . . . . . Parts Recycled . | . . . . . . . . . . . . . . . . . . . . . . . . . Recycled Matter . | . . . . . . . . . . . . . . . . . . . . . . . . . Retrieved Matter . | . . . . . . . . . . . . . . . . . . . . . . . . . Retrieved Components 13 | . 2 . 3 . . . . 1 . 7 . . . . . . . . . . . . . . Parts Scanalyzed 9 | . . . . . . . 1 . . 1 . . . . 7 . . . . . . . . . Part Schematics Acquired 8 | . . . . . . . 1 . . . . . . . 7 . . . . . . . . . Parts Damaged . | . . . . . . . . . . . . . . . . . . . . . . . . . Bothacking | -11 -10 -10 -9 -9 -9 -8 -8 -7 -7 -7 -7 -7 -7 -6 -6 -5 -5 -5 -5 -4 -4 -3 -2 -1 ------------ Run | Scr Mat Min Mat Min Exi Min Mat Fac Was Fac Low Low Zio Pro Fac Fac Upp Upp War Pro Fac Res Res Acc Used RIF Installer . | . . . . . . . . . . . . . . . . . . . . . . . . . Robots Hacked . | . . . . . . . . . . . . . . . . . . . . . . . . . Non-combat . | . . . . . . . . . . . . . . . . . . . . . . . . . Combat . | . . . . . . . . . . . . . . . . . . . . . . . . . Robot Hacks Applied . | . . . . . . . . . . . . . . . . . . . . . . . . . Relay Couplers Released 9 | . . . . . . . . . . . . . . . . . . . . . . . 3 6 Machine Destruction 5 | . . . . . . . . . . . . . . . . . . . . . . . 3 2 Programmers 4 | . . . . . . . . . . . . . . . . . . . . . . . . 4 Robots Rewired 1 | . . . . . . . . . . . . . . . . . . . . 1 . . . . Allies Hacked . | . . . . . . . . . . . . . . . . . . . . . . . . . Hacks Repelled . | . . . . . . . . . . . . . . . . . . . . . . . . . Allies | -11 -10 -10 -9 -9 -9 -8 -8 -7 -7 -7 -7 -7 -7 -6 -6 -5 -5 -5 -5 -4 -4 -3 -2 -1 -------- Run | Scr Mat Min Mat Min Exi Min Mat Fac Was Fac Low Low Zio Pro Fac Fac Upp Upp War Pro Fac Res Res Acc Total Allies 16 | . . . . . . . . 1 . 6 . . 2 . 6 . . . . 1 . . . . Largest Group 6 | . . . . . . . . 1 . 6 1 . 2 2 3 . . . . 1 . . . . Highest-Rated Group 188 | . . . . . . . . 26 . 132 26 . 188 188 188 . . . . 47 . . . . Highest-Rated Ally 94 | . . . . . . . . 26 . 32 26 . 94 94 94 . . . . 47 . . . . Total Orders 14 | . . . . . . . . . . 11 . . . . 1 . 2 . . . . . . . GOTO 5 | . . . . . . . . . . 5 . . . . . . . . . . . . . . FOLLOW 7 | . . . . . . . . . . 6 . . . . . . 1 . . . . . . . EXPLORE 2 | . . . . . . . . . . . . . . . 1 . 1 . . . . . . . Ally Attacks 135 | . . . . . . . . . . 28 . . . 30 71 . . . . 6 . . . . Total Damage 2601 | . . . . . . . . . . 453 . . . 1099 916 . . . . 133 . . . . Kills 19 | . . . . . . . . . . 4 . . . 9 6 . . . . . . . . . Allies Corrupted . | . . . . . . . . . . . . . . . . . . . . . . . . . Allies Melted 1 | . . . . . . . . . . . . . . . . . . . . 1 . . . . Intel | -11 -10 -10 -9 -9 -9 -8 -8 -7 -7 -7 -7 -7 -7 -6 -6 -5 -5 -5 -5 -4 -4 -3 -2 -1 ------- Run | Scr Mat Min Mat Min Exi Min Mat Fac Was Fac Low Low Zio Pro Fac Fac Upp Upp War Pro Fac Res Res Acc Robot Analysis Total 5 | . 1 . 2 . . . . . . . . . . 2 . . . . . . . . . . Derelict Logs Recovered 8 | . . . . . . . . . . . 2 . 1 1 . . 1 2 . 1 . . . . Drone Launches 9 | . . . . . . . . . . . . . . . 4 . 3 . . . . . . 2 Drone Recoveries . | . . . . . . . . . . . . . . . . . . . . . . . . . Exploration | -11 -10 -10 -9 -9 -9 -8 -8 -7 -7 -7 -7 -7 -7 -6 -6 -5 -5 -5 -5 -4 -4 -3 -2 -1 ------------- Run | Scr Mat Min Mat Min Exi Min Mat Fac Was Fac Low Low Zio Pro Fac Fac Upp Upp War Pro Fac Res Res Acc Turns Passed 22567 | 66 787 9 494 274 402 146 1024 937 617 2536 492 517 1340 425 2170 1455 1346 1055 806 1181 467 713 626 2682 Spaces Moved 11752 | 44 321 8 232 170 300 102 449 440 362 1334 256 330 1184 352 1004 667 705 574 477 516 252 333 323 1017 Core 14 | 1 . . . . . . . . . . . . . . . . 1 . . . . . . 12 Treads 7828 | . 190 . . . . . 151 440 362 1334 256 49 . . 933 667 683 574 477 318 . 66 323 1005 Legs 717 | . . . . . . . . . . . . . . . . . . . . 198 252 267 . . Wheels 3172 | 43 131 8 232 170 300 102 298 . . . . 281 1184 352 71 . . . . . . . . . Hover . | . . . . . . . . . . . . . . . . . . . . . . . . . Flight 21 | . . . . . . . . . . . . . . . . . 21 . . . . . . . Fastest Speed 5 | 50 90 120 120 140 130 130 140 170 152 152 152 110 110 110 110 160 5 160 160 116 116 143 160 50 Average Speed 147 | 98 133 120 134 140 130 137 150 170 154 152 158 143 110 110 154 160 158 160 160 154 140 146 160 155 Slowest Speed 350 | 100 180 120 140 140 140 140 172 170 170 180 180 180 110 110 180 160 350 160 160 180 146 180 160 250 Overloaded Moves 1 | . . . . . . . . . . . . . . . . . 1 . . . . . . . Propulsion Burnouts . | . . . . . . . . . . . . . . . . . . . . . . . . . Robots Hopped . | . . . . . . . . . . . . . . . . . . . . . . . . . Cave-ins Triggered 1 | . . . 1 . . . . . . . . . . . . . . . . . . . . . Exploration Rate (%) 41 | 3 58 8 23 44 68 30 29 16 90 26 40 63 81 62 34 19 80 71 76 75 5 8 9 28 Regions Visited 24 Branch Regions 12 Pre-discovered Areas 8 | . 2 . 1 . 1 . . . . . . . 3 . . . 1 . . . . . . . Known Exits Taken 8 | . 1 . 1 . . . . . . 1 . . . . 1 1 . 1 . . . 1 1 . Unknown Exits Taken 14 | 1 . 1 . 1 1 1 1 . . . 1 1 1 1 . . 1 . 1 1 1 . . . Scrap Searched 16 | . . . . . . . . . . . 2 3 2 . . . 3 2 . 4 . . . . Spaces Dug 86 | . . . 6 . . . . 1 . 9 5 3 . . 13 . 3 5 5 3 9 . . 24 Terrain Destroyed 396 | . . . 6 . . . . 12 1 30 12 18 . 3 48 50 5 22 5 49 23 17 7 88 Melee 5 | . . . . . . . . . . 5 . . . . . . . . . . . . . . Projectile 235 | . . . 6 . . . . 1 1 6 12 6 . 3 27 24 5 20 5 34 23 7 4 51 AOE 156 | . . . . . . . . 11 . 19 . 12 . . 21 26 . 2 . 15 . 10 3 37 Actions | -11 -10 -10 -9 -9 -9 -8 -8 -7 -7 -7 -7 -7 -7 -6 -6 -5 -5 -5 -5 -4 -4 -3 -2 -1 --------- Run | Scr Mat Min Mat Min Exi Min Mat Fac Was Fac Low Low Zio Pro Fac Fac Upp Upp War Pro Fac Res Res Acc Total 15528 | 59 543 7 360 191 313 106 710 559 394 1747 301 359 1225 379 1525 942 911 664 513 753 333 502 425 1707 Wait 2130 | 1 103 . 61 11 7 2 171 47 1 298 10 6 23 16 393 138 131 39 8 89 49 104 63 359 Move 11728 | 43 320 7 231 169 299 101 448 440 361 1333 255 329 1183 351 1003 666 704 573 476 515 251 332 322 1016 Hop . | . . . . . . . . . . . . . . . . . . . . . . . . . Pick Up 210 | 6 19 . 16 1 1 . 12 7 5 16 2 2 5 . 17 18 23 3 3 11 1 10 12 20 Fast Attach 96 | 5 2 . 3 . . . 7 3 2 5 2 2 4 1 7 9 14 1 4 7 2 5 2 9 Attach 105 | 1 5 . 7 . . 2 1 5 . 6 1 . . . 11 9 . 1 . 7 6 4 3 36 Detach 42 | . 1 . 1 . 1 . 2 3 . 4 . 1 . . 1 6 1 . 2 3 . 1 2 13 Swap 197 | 1 12 . 10 2 1 . 9 9 . 14 6 5 1 6 15 22 7 8 5 19 7 8 3 27 Drop 182 | . 6 . 7 1 4 . 15 6 10 15 2 4 9 1 12 17 16 3 8 8 . 14 11 13 Fire 805 | 2 75 . 24 7 . 1 45 39 15 50 23 9 . 4 62 57 14 29 7 85 17 23 5 212 Melee 6 | . . . . . . . . . . 6 . . . . . . . . . . . . . . Ram 2 | . . . . . . . . . . . . . . . . . . . . . . . . 2 Kick . | . . . . . . . . . . . . . . . . . . . . . . . . . Crush . | . . . . . . . . . . . . . . . . . . . . . . . . . Escape Stasis . | . . . . . . . . . . . . . . . . . . . . . . . . . Rewire 11 | . . . . . . . . . . . . . . . 2 . . . . 9 . . . . Trap 11 | . . . . . . . . . . . . 1 . . . . . 7 . . . 1 2 . Miscellaneous 3 | . . . . . . . . . . . . . . . 2 . 1 . . . . . . . Route ------- -11/Scrapyard -10/Materials (discovered 2 exits: *Mat / *Min) -10/Mines -9/Materials (discovered 2 exits: *Min / Sto) -9/Mines (discovered 2 exits: *Mat / *Exi) -9/Exiles -8/Mines -8/Materials -7/Factory (discovered 4 exits: *Fac x2 / Low x2) -7/Waste -7/Factory (discovered 2 exits: *Fac / *Low) -7/Lower Caves -7/Lower Caves -7/Zion -6/Proximity Caves -6/Factory (discovered 5 exits: *Fac x3 / Low x2) -5/Factory (discovered 4 exits: *Fac x2 / *Upp x2) -5/Upper Caves -5/Upper Caves -5/Warlord -4/Proximity Caves -4/Factory -3/Research (discovered 4 exits: *Res x3 / Arm) -2/Research -1/Access To Epsilon Eridani History --------- Turn | Location | Event 36 | -11/Scrapyard | Discovered new exit (range 16) 67 | -11/Scrapyard | Entered Materials 105 | -10/Materials | Repaired Com. Wheel 281 | -10/Materials | Discovered new exit (range 8) 317 | -10/Materials | Build established: Mutant 444 | -10/Materials | Central database locked down 491 | -10/Materials | Identified exit to Mines 660 | -10/Materials | Core integrity fell below 50% 854 | -10/Materials | Entered Mines 854 | -10/Mines | Discovered new exit (range 8) 863 | -10/Mines | Entered Materials 863 | -9/Materials | Evolved 2 slots: Utility x2 1114 | -9/Materials | Identified exit to Mines 1114 | -9/Materials | Identified exit to Storage 1232 | -9/Materials | Build established: Hauler-Mutant 1266 | -9/Materials | Crushed by falling debris 1297 | -9/Materials | Lost 3 parts (1p1u1w) 1357 | -9/Materials | Entered Mines 1485 | -9/Mines | Discovered new exit (range 4) 1625 | -9/Mines | Deemed a non-threat by the Exiles lab entrance 1625 | -9/Mines | Discovered new exit (range 5) 1631 | -9/Mines | Entered Exiles 1665 | -9/Exiles | Met 8R-AWN 1687 | -9/Exiles | Met EX-HEX 1735 | -9/Exiles | Met EX-DEC 1758 | -9/Exiles | Learned location of Zion (-7) 1834 | -9/Exiles | Met EX-BIN 1849 | -9/Exiles | Aligned with FarCom system 1850 | -9/Exiles | Given EX-Vault access code 1883 | -9/Exiles | Opened EX-Vault 1899 | -9/Exiles | Found AWS/Thermal 1928 | -9/Exiles | Warned to stay clear of 0b10 Research branches 1939 | -9/Exiles | Exiles lab attacked by MAIN.C 2017 | -9/Exiles | Discovered new exit (range 14) 2033 | -9/Exiles | Left Exiles lab with AWS/Thermal 2033 | -9/Exiles | Entered Mines 2157 | -8/Mines | Discovered new exit (range 10) 2179 | -8/Mines | Entered Materials 2179 | -8/Materials | Evolved 2 slots: Propulsion x1, Utility x1 2832 | -8/Materials | Repaired Lgt. Treads 2856 | -8/Materials | Discovered new exit (range 10) 3203 | -8/Materials | Entered Factory 3203 | -7/Factory | Evolved 2 slots: Utility x2 3455 | -7/Factory | Discovered new exit (range 16) 3735 | -7/Factory | Identified exit to Lower Caves 3876 | -7/Factory | Hacking Suite fried by hacking feedback 3924 | -7/Factory | Discovered new exit (range 14) 4140 | -7/Factory | Sucked down chute 4140 | -7/Factory | Entered Waste 4140 | -7/Waste | The area was eerily silent 4181 | -7/Waste | Build established: Hacker-Mutant 4269 | -7/Waste | Found Damper Plating 4530 | -7/Waste | Discovered new exit (range 16) 4757 | -7/Waste | Entered Factory 4827 | -7/Factory | Discovered exit to Lower Caves (range 7) 5659 | -7/Factory | Fabricated Cld. VTOL Module (x1) 5711 | -7/Factory | Fabricated Cld. VTOL Module? 5990 | -7/Factory | Discovered new exit (range 16) 6336 | -7/Factory | Repaired Adv. Treads 6338 | -7/Factory | Repaired Hvy. Treads? 6438 | -7/Factory | Repaired Hvy. Treads 6905 | -7/Factory | Fabricated Hvy. Neutron Cannon (x2) 6972 | -7/Factory | Fabricated Hvy. Neutron Cannon (x2) 7143 | -7/Factory | Local fabrication network quarantined 7293 | -7/Factory | Entered Lower Caves 7293 | -7/Lower Caves | Accompanied by 1 ally 7407 | -7/Lower Caves | Build established: Hauler-Mutant 7618 | -7/Lower Caves | Learned Factory terminal intel 7627 | -7/Lower Caves | Learned Factory emergency access door positions 7645 | -7/Lower Caves | Spotted B-75 Beast 7664 | -7/Lower Caves | Destroyed B-75 Beast 7693 | -7/Lower Caves | Lost 3 parts (1n2u) 7698 | -7/Lower Caves | Discovered new exit (range 11) 7785 | -7/Lower Caves | Entered another Lower Caves area 7932 | -7/Lower Caves | Encountered a Warlord checkpoint 8246 | -7/Lower Caves | Spotted B-75 Beast 8295 | -7/Lower Caves | Discovered new exit (range 8) 8302 | -7/Lower Caves | Entered Zion 8353 | -7/Zion | Given A8's code to call for help 8385 | -7/Zion | Discovered new exit (range 16) 8474 | -7/Zion | Learned location of Quarantine (-2) 8557 | -7/Zion | Found Prototype Device 8577 | -7/Zion | Identified Mobile Refinery Mk. CCLXVII 8611 | -7/Zion | Learned location of Armory (-3) 8888 | -7/Zion | Learned location of Warlord (-5) 8968 | -7/Zion | Learned 4 Factory zone layouts 9481 | -7/Zion | Enhanced Grunt warped into view, answering call for help 9487 | -7/Zion | Enhanced Grunt warped into view, answering call for help 9642 | -7/Zion | Entered Proximity Caves 9642 | -6/Proximity Caves | Accompanied by 2 allies 9660 | -6/Proximity Caves | Attracted the attention of an 0b10 checkpoint 9838 | -6/Proximity Caves | Spotted B-75 Beast 9852 | -6/Proximity Caves | Allies destroyed B-75 Beast 9883 | -6/Proximity Caves | Learned Factory emergency access door positions 9940 | -6/Proximity Caves | Discovered new exit (range 20) 10067 | -6/Proximity Caves | Entered Factory 10067 | -6/Factory | Accompanied by 2 allies 10067 | -6/Factory | Evolved 2 slots: Propulsion x1, Utility x1 10068 | -6/Factory | Identified exit to Factory 10070 | -6/Factory | Loaded intel: 20 terminal locations 10379 | -6/Factory | Build established: Hacker-Mutant 10989 | -6/Factory | Discovered exit to Factory (range 21) 11069 | -6/Factory | Repaired Hvy. Treads 11095 | -6/Factory | Repaired Imp. Deuterium Engine 11280 | -6/Factory | Local fabrication network quarantined 11282 | -6/Factory | Fabricated Hvy. Treads (x2) 11373 | -6/Factory | Garrison activated, responded to threat 11835 | -6/Factory | Build established: Hauler-Mutant 12078 | -6/Factory | Garrison activated, responded to threat 12208 | -6/Factory | Identified exit to Lower Caves 12237 | -6/Factory | Entered another Factory area 12237 | -5/Factory | Evolved 2 slots: Power x1, Propulsion x1 12537 | -5/Factory | First assault squad dispatched 12565 | -5/Factory | Fabricated Hvy. Treads (x2) 12779 | -5/Factory | Discovered new exit (range 21) 13522 | -5/Factory | Identified exit to Upper Caves 13643 | -5/Factory | Repaired Imp. Light Armor Plating 13692 | -5/Factory | Discovered new exit (range 15) 13692 | -5/Factory | Entered Upper Caves 13986 | -5/Upper Caves | Build established: Hacker-Mutant 14009 | -5/Upper Caves | Discovered new exit (range 63) 14333 | -5/Upper Caves | Build established: Hauler-Mutant 15038 | -5/Upper Caves | Entered another Upper Caves area 15736 | -5/Upper Caves | Identified exit to Warlord 16093 | -5/Upper Caves | Entered Warlord 16149 | -5/Warlord | System corruption cleaned by Quarantine Array 16573 | -5/Warlord | Warlord's base attacked by MAIN.C 16604 | -5/Warlord | Met Warlord 16635 | -5/Warlord | Found Prototype Device 16635 | -5/Warlord | Identified Thermal Barrier 16659 | -5/Warlord | Found Prototype Processor 16666 | -5/Warlord | Found Prototype Processor 16673 | -5/Warlord | Found Prototype Reactor 16851 | -5/Warlord | Opened side exit 16871 | -5/Warlord | Discovered new exit (range 14) 16899 | -5/Warlord | Entered Proximity Caves 17460 | -4/Proximity Caves | Attracted the attention of an 0b10 outpost 17511 | -4/Proximity Caves | Destroyed 8 combat bots 17805 | -4/Proximity Caves | Build established: Scavenger-Mutant 18074 | -4/Proximity Caves | Learned Research trap positions 18076 | -4/Proximity Caves | Discovered new exit (range 2) 18080 | -4/Proximity Caves | Entered Factory 18080 | -4/Factory | Evolved 2 slots: Utility x1, Weapon x1 18194 | -4/Factory | Discovered new exit (range 22) 18381 | -4/Factory | Identified Exp. Targeting Computer 18457 | -4/Factory | Lost 7 parts (2n1u4w) 18547 | -4/Factory | Entered Research 18547 | -3/Research | Evolved 2 slots: Utility x1, Weapon x1 18547 | -3/Research | Identified Exp. Armor Integrity Analyzer 18548 | -3/Research | Identified exit to Armory 18549 | -3/Research | Loaded intel: 63 trap records 18839 | -3/Research | Identified exit to Research 18968 | -3/Research | Build established: Scavenger-Gunner 19260 | -3/Research | Entered another Research area 19260 | -2/Research | Warlord forces began assault on 0b10 19260 | -2/Research | Evolved 2 slots: Utility x2 19354 | -2/Research | Borebot progress halted 19370 | -2/Research | Research machine network offline 19503 | -2/Research | Build established: Scavenger-Skirmisher 19592 | -2/Research | Discovered new exit (range 21) 19629 | -2/Research | Borebot progress halted 19774 | -2/Research | Identified exit to Access 19859 | -2/Research | Borebot progress halted 19876 | -2/Research | Borebot progress halted 19886 | -2/Research | Entered Access 19886 | -1/Access | Evolved 2 slots: Propulsion x1, Utility x1 19930 | -1/Access | Garrison activated, responded to threat 20025 | -1/Access | Build established: Hauler-Skirmisher 20243 | -1/Access | Found Hvy. Insulated Plating 20329 | -1/Access | Destroyed 7 combat bots 20416 | -1/Access | Build established: Hauler-Gunner 20876 | -1/Access | Found Prototype Launcher 20886 | -1/Access | First assault squad dispatched 21061 | -1/Access | Build established: Hauler-Mutant 21083 | -1/Access | Identified Com. Tesla Bomb Launcher 21375 | -1/Access | Build established: Hauler-Gunner 21809 | -1/Access | Destroyed 9 combat bots 21951 | -1/Access | Destroyed 9 combat bots 21990 | -1/Access | Garrison activated, responded to threat 22025 | -1/Access | Destroyed 13 combat bots 22052 | -1/Access | Lost 4 parts (1n1u2w) 22159 | -1/Access | Identified Vortex Chain Reactor 22163 | -1/Access | Destroyed 16 combat bots 22167 | -1/Access | Lost 6 parts (1p2n2u1w) 22275 | -1/Access | High security lockdown imminent 22296 | -1/Access | Destroyed 7 combat bots 22355 | -1/Access | High security lockdown engaged 22434 | -1/Access | Lost 7 parts (3n2u2w) 22456 | -1/Access | System corruption reached 10% 22510 | -1/Access | Lost 11 parts (1p2n3u5w) 22545 | -1/Access | Released all parts (9) 22565 | -1/Access | Core integrity fell below 50% 22565 | -1/Access | Discovered new exit (range 8) 22567 | -1/Access | Spotted B-99 Colossus 22568 | -1/Access | Spotted B-99 Colossus 22568 | *** | Escaped! Last Messages --------------- 22545_ Released Adv. Target Analyzer. 22545_ Released Adv. Core Analyzer. 22545_ Released Exp. Armor Integrity Analyzer. 22545_ Released Hcp. Storage Unit. 22545_ Released Lrg. Storage Unit. 22545_ Released Lgt. Particle Reactor. 22545_ Released Exp. Cooling System. 22545_ Released Adv. Targeting Computer. 22545_ Released Enh. Nova Cannon. 22556_ System corrupted: Enh. Nova Cannon targeting data glitched. Sealed Barrier opened remotely. 22561_ Terminal disabled. 22563_ KEU7DI|NOFR88E3,6::7USJPNU=E/VT#SL 22563_ Slammed into L-61 Swordsman. 22563_ Destabilizing: System corrupted (+1). Sealed Heavy Doors opened remotely. 22564_ Slammed into L-61 Swordsman. 22565_ The Access Shell folds into the floor. 22565_ EXIT=FOUND Sealed Heavy Doors opened remotely. Map ----- +----------------------------------------------------+ | ??????????????????????? ####################+# # | | ??????????????????????? + | | ??????????????????????? # | | ??????????????????????? # ###################/## | | ??????????????????????? # #????????????????? ! | | ??????????????????????? # #????????????????? | | ??????????????????????? # %#???????????????? | | ???????????????#########/# %#########???????? | | ???????????? " #?????? | | ???????????? g gg g ######## #??????###### | | ????????????????########/#+#####?????????????????? | | ?????????????????# #?????????????????? | | ????????????g????# #?????????????????? | | ?????????????????#!* #?????????????????? | | ????????????l????#!![ #?????????????????? | | ????????????g????#!|[] #?????????????????? | | ????????????C????#=%!! #?????????????????? | | ????????????g????#*#############?????????????????? | | ????????????????####*#???????????????????????????? | | ???????????? ####;;; ##################??????????? | | ???????????? """T" " l ?????w????? | | ??????????#k """ """ l BB ?????????? | | ??????????# BB ?????????? | | ??????????# ????????? | | ??????????# "" ????????? | | ??????????# @" ????????? | | ??????????# ????????? | | ??????????# BB ????????? | | ??????????# " BB ?????????? | | ??????????#A g ""?? ?????????? | | ??????????# ####### ############????????????????? | | ??????????# ??????###???????????????????????????? | | ?????????????????????????????????????????????????? | | ?????????????????????????????????????????????????? | | ?????????????????????????????????????????????????? | | ?????????????????????????????????????????????????? | | ?????????????????????????????????????????????????? | | ?????????????????????????????????????????????????? | | ?????????????????????????????????????????????????? | | ?????????????????????????????????????????????????? | | ?????????????????????????????????????????????????? | | ?????????????????????????????????????????????????? | | ?????????????????????????????????????????????????? | | ?????????????????????????????????????????????????? | | ?????????????????????????????????????????????????? | | ?????????????????????????????????????????????????? | | ?????????????????????????????????????????????????? | | ?????????????????????????????????????????????????? | | ?????????????????????????????????????????????????? | | ?????????????????????????????????????????????????? | +----------------------------------------------------+ Best States ------------- Heat Dissipation 109 Energy Generation 55 Energy Capacity 700 Matter Stores 475 Matter Capacity 500 Sight Range 22 Robot Scan Range 20 Terrain Scan Range 24 Terrain Scan Density 210 Jamming Range 16 Armor Coverage 1200 Resistance: KI 25 Resistance: TH 50 Resistance: EM 30 Core Shielding 20 Utility Shielding 33 Phase Shifting 15 Evasion (%) 55 Targeting Accuracy 20 Target Analysis 8 Core Analysis 10 Armor Integrity Analysis 90 Recoil Reduction 6 Kinecelleration 40 Offensive Hacking 40 Defensive Hacking 14 Item Schematics ----------------- Lrg. Storage Unit | -10/Materials | Hacked Aerolev Unit | -8/Materials | Scanalyzed Cld. VTOL Module | -7/Factory | Hacked Hvy. Neutron Cannon | -7/Factory | Downloaded Hvy. Treads | -6/Factory | Scanalyzed Mak. Transmission Jammer | -6/Factory | Scanalyzed Mak. System Restoration Module | -6/Factory | Scanalyzed Mic. Nuclear Core | -6/Factory | Scanalyzed Hacking Suite | -6/Factory | Scanalyzed System Shield | -6/Factory | Scanalyzed Med. Insulated Plating | -6/Factory | Scanalyzed Biometal Heavy Treads | -4/Factory | Hacked Robot Schematics ------------------ None Fabricated ------------ Cld. VTOL Module | x1 | -7/Factory Cld. VTOL Module | x1 | -7/Factory Hvy. Neutron Cannon | x2 | -7/Factory | Preloaded Hvy. Neutron Cannon | x2 | -7/Factory | Preloaded Hvy. Treads | x2 | -6/Factory Hvy. Treads | x2 | -5/Factory Alien Tech Used ----------------- None Achievements -------------- Speed Demon Supersonic Challenges ------------ None Game ------ Seed CloakAntimissileGun Manual? 0 Play Time 03:17:17 Cumulative 420.4 hours Start 2019.12.01 @ 10:17:49 End 2019.12.07 @ 13:09:29 Sessions 5 Manual Loads 0 Difficulty Rogue Special Mode None Game No. 314 Rogue 310 Adventurer 4 Explorer 0 Win Type 0 Total 33 Types 27/2/1/1/2/0/0 Lore% 92 Gallery% 94 Achievement% 89 Wizard Run 0 Options --------- ASCII 0 Keyboard 0 Movement Vi Keybinds 0 Fullscreen 0 Font 16/Terminus Map View 76x50 Tactical HUD 1 Map Filters NONE Filters NONE Steam 1 RUN: d0e87b93-09ce-4ede-9f42-58364a9bb9dd